fUSD/lending_fUSD_20241010
["ID","MTS","AMOUNT","RATE_DAILY","PERIOD"]
[340101448,1728546079303,250.0,0.00010194,2]
[340101449,1728546195454,500.0,0.00010112,2]
[340101450,1728546431134,-300.0,0.00010236,2]
[340101451,1728546431156,-1456.62317767,0.00010237,2]
[340101452,1728546493551,650.8,8.299e-05,2]
[340101470,1728546632327,-716.18874666,0.00010237,2]
[340101471,1728546632339,-1429.9999999,0.00010237,2]
[340101472,1728546632350,-1505.24235457,0.00010237,2]
[340101473,1728546632383,-2756.55222398,0.00010237,2]
[340101474,1728546632438,-2626.20716969,0.00010237,2]
[340101475,1728546632492,-4741.27912961,0.00010237,2]
[340101476,1728546632547,-2261.75,0.00010237,2]
[340101477,1728546632557,-1283.39985363,0.00010237,2]
[340101478,1728546632569,-5112.75734429,0.00010237,2]
[340101479,1728546632578,-250.0,0.00010297,2]
[340101480,1728546632587,-200.91,0.00010317,2]
[340101481,1728546632597,-289.36274047,0.00010351,2]
[340101486,1728546638512,-268.78725953,0.00010351,2]
[340101487,1728546638522,-650.8,0.00010562,2]
[340101488,1728546638532,-1000.0,0.00010649,2]
[340101489,1728546638542,-447.0,0.000107,2]
[340101490,1728546638552,-150.0,0.00010877,2]
[340101491,1728546638563,-3746.0,0.0001089,2]
[340101492,1728546638572,-499.99,0.000109,2]
[340101493,1728546638581,-592.20236713,0.000109,2]
[340101494,1728546638593,-559.12249875,0.000109,2]
[340101495,1728546639792,-931.49093412,0.000109,2]
[340101496,1728546639803,-8517.93752742,0.000109,2]
[340101497,1728546639814,-167.49071049,0.000109,2]
[340101498,1728546639826,-187.60624686,0.000109,2]
[340101499,1728546639838,-86910.51269457,0.000109,2]
[340101500,1728546639850,-1129.0,0.000109,2]
[340101501,1728546639861,-276.253,0.00010916,2]
[340101502,1728546639871,-158.15,0.00010959,2]
[340101503,1728546639881,-250.0,0.00010959,2]
[340101504,1728546639892,-150.88,0.00010959,2]
[340101505,1728546639903,-153.58,0.00010959,2]
[340101506,1728546639915,-1472.92,0.00010959,2]
[340101507,1728546639925,-501.52793589,0.00010973,2]
[340101508,1728546639936,-502.08720999,0.00010973,2]
[340101509,1728546639948,-561.83581059,0.0001099,2]
[340101510,1728546639959,-561.83581059,0.0001099,2]
[340101511,1728546639971,-561.83581059,0.0001099,2]
[340101512,1728546639982,-150.0,0.00010998,2]
[340101513,1728546639993,-159.61986477,0.00010999,2]
[340101514,1728546640006,-500.0,0.00010999,2]
[340101515,1728546640019,-463.36258036,0.00010999,2]
[340101516,1728546640030,-500.0,0.00010999,2]
[340101517,1728546640042,-500.0,0.00010999,2]
[340101518,1728546640054,-500.0,0.00010999,2]
[340101519,1728546640065,-500.0,0.00010999,2]
[340101520,1728546640077,-250.0,0.00010999,2]
[340101521,1728546640087,-114310.57933403,0.00011,2]
[340101522,1728546640099,-534.0,0.00011,2]
[340101523,1728546640110,-12848.05822865,0.00011,2]
[340101524,1728546640124,-482.0106,0.00011,2]
[340101525,1728546640137,-6407.8,0.00011,2]
[340101528,1728546640402,-837496.13488769,0.00011,2]
[340101529,1728546640416,-80064.02774154,0.00011,2]
[340101530,1728546640430,-2728136.14772052,0.00011,2]
[340101531,1728546640443,-1515569.94859534,0.00011,2]
[340101532,1728546640454,-261592.25449578,0.00011,2]
[340101533,1728546640467,-950927.7380224,0.00011,2]
[340101534,1728546640479,-1139512.24047776,0.00011,2]
[340101535,1728546640489,-1271338.64180212,0.00011,2]
[340101536,1728546640503,-388.52492043,0.00011,2]
[340101537,1728546640521,-488.0,0.00011,2]
[340101543,1728546643600,-550.3927,0.000109,2]
[340101544,1728546643612,-350.65698136,0.00011,2]
[340101549,1728546646516,-1246.75695405,0.00011,2]
[340101550,1728546646569,-265.12497016,0.00011,2]
[340101551,1728546646675,-262.53999552,0.00011,2]
[340101552,1728546829633,200.0,0.0001,2]
[340101554,1728547086911,615.54,8.302e-05,2]
[340101555,1728547155872,250.0,0.00010151,2]
[340101556,1728547208982,279.97,0.00010167,2]
[340101557,1728547251101,378.77,0.00010206,2]
[340101558,1728547383615,532.44,0.00010164,2]
[340101559,1728547397901,500.0,0.00010083,2]
[340101561,1728547630500,613.08,8.335e-05,2]
[340101564,1728547650323,163.32,0.00010205,2]
[340101565,1728547651124,-250.0,0.00010262,2]
[340101566,1728547651152,-200.0,0.00010315,2]
[340101567,1728547651176,-500.0,0.00010315,2]
[340101568,1728547651198,-500.0,0.00010315,2]
[340101569,1728547651220,-283.25,0.00010539,2]
[340101570,1728547651241,-465.10351525,0.00010599,2]
[340101587,1728547680845,1292.6215,0.00010162,2]
[340101970,1728547814590,189.38,0.00010198,2]
[340101984,1728547831529,-200.91,0.00010253,2]
[340101985,1728547831539,-168.23,0.00010301,2]
[340101987,1728547831550,-1000.0,0.00010313,2]
[340101989,1728547831560,-250.0,0.00010351,2]
[340101991,1728547831571,-147.97648475,0.00010599,2]
[340101992,1728547831580,-1138.99136312,0.0001078,2]
[340101994,1728547831590,-1065.76999341,0.0001078,2]
[340101996,1728547831600,-951.7547,0.0001089,2]
[340101997,1728547831610,-1816.4272,0.000109,2]
[340101999,1728547831619,-161.33933335,0.000109,2]
[340102000,1728547831629,-452.354,0.00010917,2]
[340102001,1728547831640,-150.0,0.00010917,2]
[340102002,1728547831649,-935.0,0.00010917,2]
[340102003,1728547831659,-260.57986058,0.00010917,2]
[340102004,1728547831671,-298.42013942,0.00010917,2]
[340102005,1728547831681,-150.0,0.0001092,2]
[340102006,1728547831690,-2066.354,0.00010921,2]
[340102007,1728547831700,-1167.803,0.00010921,2]
[340102008,1728547831710,-555.0,0.00010921,2]
[340102009,1728547831719,-158.14,0.00010959,2]
[340102010,1728547831730,-150.88,0.00010959,2]
[340102011,1728547831740,-250.0,0.00010959,2]
[340102012,1728547831749,-247.17,0.00010959,2]
[340102013,1728547831759,-205.98,0.00010959,2]
[340102014,1728547831769,-171.65,0.00010959,2]
[340102015,1728547831778,-858.26,0.00010959,2]
[340102016,1728547831788,-154.35,0.00010959,2]
[340102017,1728547831798,-590.853,0.0001096,2]
[340102018,1728547831808,-150.0,0.0001096,2]
[340102019,1728547831817,-1796.32409337,0.0001096,2]
[340102020,1728547831830,-397.7418011,0.0001096,2]
[340102021,1728547831846,-1029.07753147,0.0001096,2]
[340102022,1728547831858,-1965.56307591,0.0001096,2]
[340102023,1728547831873,-458.79449815,0.0001096,2]
[340102024,1728547831884,-401.07489777,0.00010973,2]
[340102025,1728547831893,-227.48689619,0.00010973,2]
[340102026,1728547831903,-152.71925709,0.00010973,2]
[340102028,1728547831913,-221.002,0.00010989,2]
[340102030,1728547831923,-74.99125431,0.00010989,2]
[340102032,1728547831934,-425.00874569,0.00010989,2]
[340102033,1728547831943,-297.15698778,0.00010989,2]
[340102037,1728547837783,-667.14006885,0.0001096,2]
[340102038,1728547837795,-415.85993115,0.0001096,2]
[340102039,1728547837805,-270.80378075,0.00010989,2]
[340102040,1728547837815,-12704.58306389,0.0001099,2]
[340102041,1728547838047,-467.6403731,0.0001099,2]
[340102122,1728547839828,-1045.61773391,0.00010769,2]
[340102123,1728547839840,-85257.14995165,0.0001099,2]
[340102124,1728547839852,-1078.91995452,0.0001099,2]
[340102125,1728547839883,-274.89781521,0.0001099,2]
[340102126,1728547839894,-975.016,0.0001099,2]
[340102157,1728547842891,-165.76218273,0.00010899,2]
[340102158,1728547842907,-1446.08198885,0.0001099,2]
[340102159,1728547842922,-21845.33246927,0.0001099,2]
[340102160,1728547842932,-4164.11745507,0.0001099,2]
[340102161,1728547842945,-414.99999986,0.0001099,2]
[340103127,1728548236882,-250.0,0.00010307,2]
[340103128,1728548236905,-23900.0,0.00010387,2]
[340103129,1728548236927,-174.69,0.00010588,2]
[340103130,1728548236949,-174.69,0.00010615,2]
[340103131,1728548236971,-174.69,0.00010641,2]
[340103132,1728548236991,-1005.5950887,0.0001077,2]
[340103133,1728548237012,-1080.93186898,0.0001077,2]
[340103134,1728548237033,-1112.51515818,0.0001077,2]
[340103135,1728548237054,-161.33933335,0.000109,2]
[340103136,1728548237076,-500.0,0.00010902,2]
[340103137,1728548237097,-193.51,0.00010959,2]
[340103138,1728548237121,-500.0,0.00010973,2]
[340103139,1728548237141,-160.86415215,0.00010976,2]
[340103140,1728548237163,-150.0,0.00010989,2]
[340103141,1728548237187,-108595.05036733,0.0001099,2]
[340103142,1728548237208,-11866.12403131,0.0001099,2]
[340103143,1728548296955,611.88,9.194e-05,2]
[340103144,1728548302256,-5800.0,0.00013,4]
[340103145,1728548335479,502.30577175,9.964e-05,2]
[340103146,1728548340248,500.0,9.964e-05,2]
[340103147,1728548596274,500.0,9.884e-05,2]
[340103148,1728548720132,7607.62091834,9e-05,2]
[340103149,1728548730560,448.1939945,0.000101,2]
[340103150,1728548804993,615.09,8.511e-05,2]
[340103151,1728548842154,-470.37,0.00010261,2]
[340103152,1728548842176,-184.13,0.00010367,2]
[340103153,1728548842195,-170.41,0.00010389,2]
[340103154,1728548842216,-250.0,0.00010495,2]
[340103155,1728548842235,-250.0,0.00010585,2]
[340103156,1728548842256,-1000.0,0.0001066,2]
[340103157,1728548842276,-996.24098705,0.0001077,2]
[340103159,1728548867598,506.12543973,0.0001,2]
[340103185,1728549031764,-888.75166088,0.0001067,2]
[340103186,1728549031773,-200.0,0.0001073,2]
[340103187,1728549031783,-51.73116024,0.0001077,2]
[340103188,1728549031793,-1109.37359299,0.0001077,2]
[340103189,1728549031802,-615.09,0.00010775,2]
[340103190,1728549031811,-300.0,0.00010879,2]
[340103191,1728549031820,-4604.40321204,0.0001088,2]
[340103192,1728549031833,-266.95294903,0.0001088,2]
[340103193,1728549031845,-818.15190406,0.0001088,2]
[340103194,1728549031856,-13273.57920391,0.0001088,2]
[340103195,1728549031867,-415.09721781,0.0001088,2]
[340103196,1728549031878,-308.807424,0.0001088,2]
[340103197,1728549031890,-2869.83108965,0.0001088,2]
[340103198,1728549031900,-165.76218271,0.00010899,2]
[340103199,1728549031910,-161.33933335,0.000109,2]
[340103200,1728549031919,-154.8,0.00010959,2]
[340103201,1728549031929,-158.15,0.00010959,2]
[340103202,1728549031938,-3593.13227065,0.00010989,2]
[340103203,1728549031950,-818.95666546,0.00010989,2]
[340103204,1728549031961,-3350.40350675,0.00010989,2]
[340103205,1728549031972,-4328.91690403,0.00010989,2]
[340103206,1728549031983,-1653.46659865,0.00010989,2]
[340103207,1728549031995,-745.31368766,0.00010989,2]
[340103208,1728549032007,-496.3329089,0.00010989,2]
[340103209,1728549032019,-269.0000005,0.00010989,2]
[340103210,1728549032041,-1796.69092453,0.00010989,2]
[340103219,1728549037827,-161.33933335,0.000109,2]
[340103220,1728549037837,-1305.29978492,0.00010989,2]
[340103221,1728549037849,-911.13674795,0.00010989,2]
[340103222,1728549037859,-240.995,0.00010989,2]
[340103223,1728549037869,-150.0,0.00010989,2]
[340103224,1728549037878,-30749.90366154,0.0001099,2]
[340103225,1728549037892,-1000.0,0.0001099,2]
[340103226,1728549037903,-198417.09447362,0.0001099,2]
[340103227,1728549037913,-39855.105,0.0001099,2]
[340103228,1728549037923,-449.0,0.00010999,2]
[340103229,1728549037932,-626.0,0.00010999,2]
[340103230,1728549037941,-1298.169,0.00010999,2]
[340103231,1728549037951,-811.0,0.00010999,2]
[340103232,1728549037961,-150.0,0.00010999,2]
[340103233,1728549037970,-500.0,0.00010999,2]
[340103234,1728549037979,-513.90516678,0.00010999,2]
[340103235,1728549037989,-527.0,0.00011,2]
[340103236,1728549037998,-103165.29784896,0.00011,2]
[340103237,1728549038008,-25824.59644178,0.00011,2]
[340103238,1728549038215,-2944.34240302,0.00011,2]
[340103239,1728549038227,-9101.3781579,0.00011,2]
[340103240,1728549038238,-8693.51986952,0.00011,2]
[340103241,1728549038249,-1381.24087936,0.00011,2]
[340103242,1728549038262,-373.72250086,0.00011,2]
[340103243,1728549038272,-35283.02693074,0.00011,2]
[340103244,1728549038284,-304.56000055,0.00011,2]
[340103245,1728549038295,-131823.84002267,0.00011,2]
[340103246,1728549038305,-747741.5876708,0.00011,2]
[340103247,1728549038315,-470950.66569901,0.00011,2]
[340103248,1728549038324,-305206.31426493,0.00011,2]
[340103249,1728549038336,-565.8313987,0.00011,2]
[340103250,1728549038350,-513.30798993,0.00011,2]
[340103253,1728549039795,-10860.15802011,0.00011,2]
[340103254,1728549039853,-1247.656956,0.00011,2]
[340103401,1728549042969,-635.21123001,0.00011,2]
[340103402,1728549042981,-21265.68264158,0.00011,2]
[340103403,1728549043080,-423.97074858,0.00011,2]
[340103531,1728549045704,-23327.2280345,0.00011,2]
[340103549,1728549045871,-6122.59551198,0.00011,2]
[340103879,1728549153389,431.0,0.000104,5]
[340103880,1728549304849,587.39,8.853e-05,2]
[340103882,1728549690508,1000.0,9.684e-05,2]
[340103883,1728549745451,4619.27,9.69e-05,2]
[340103884,1728549798685,250.0,9.693e-05,2]
[340103885,1728549895514,624.54,8.219e-05,2]
[340103886,1728549936192,250.0,9.684e-05,2]
[340103887,1728550007289,602.61,9.688e-05,2]
[340103888,1728550034030,208.67,9.682e-05,2]
[340103889,1728550037134,-1124.9464015,0.00010449,2]
[340103890,1728550037157,-624.54,0.00010459,2]
[340103891,1728550037177,-163.60287503,0.00010512,2]
[340103892,1728550063291,-1000.0,0.00010512,2]
[340103893,1728550066051,-710.02090022,0.00010512,2]
[340103894,1728550066076,-184.13,0.00010512,2]
[340103895,1728550066098,-105.84909978,0.00010512,2]
[340103896,1728550067524,-116.85090022,0.00010512,2]
[340103897,1728550067544,-551.51,0.00010512,2]
[340103898,1728550067564,-222.7,0.00010515,2]
[340103899,1728550067583,-108.93909978,0.00010517,2]
[340103900,1728550068633,-113.76090022,0.00010517,2]
[340103901,1728550068655,-222.7,0.0001052,2]
[340103902,1728550068675,-222.7,0.00010523,2]
[340103903,1728550068696,-222.7,0.00010526,2]
[340103904,1728550068717,-218.13909978,0.00010528,2]
[340103905,1728550070106,-4.56090022,0.00010528,2]
[340103906,1728550070126,-222.7,0.00010531,2]
[340103907,1728550070146,-222.7,0.00010534,2]
[340103908,1728550070166,-222.7,0.00010537,2]
[340103909,1728550070187,-222.7,0.0001054,2]
[340103910,1728550070208,-104.63909978,0.00010542,2]
[340103911,1728550071580,-118.06090022,0.00010542,2]
[340103912,1728550071602,-222.7,0.00010545,2]
[340103913,1728550071623,-222.7,0.00010548,2]
[340103914,1728550071643,-222.7,0.00010551,2]
[340103915,1728550071664,-213.83909978,0.00010553,2]
[340103916,1728550073243,-8.86090022,0.00010553,2]
[340103917,1728550073264,-300.0,0.00010554,2]
[340103918,1728550073284,-222.7,0.00010556,2]
[340103919,1728550073305,-222.7,0.00010559,2]
[340103920,1728550073324,-245.73909978,0.00010559,2]
[340103921,1728550075195,-736.04090022,0.00010559,2]
[340103922,1728550075215,-222.7,0.00010562,2]
[340103923,1728550075236,-41.25909978,0.00010564,2]
[340103924,1728550083798,-222.7,0.00010564,2]
[340103925,1728550083819,-170.28,0.00010621,2]
[340103926,1728550083839,-607.02,0.00010835,2]
[340103927,1728550086444,-39.85470985,0.00010835,2]
[340103928,1728550086467,-208.67,0.00010892,2]
[340103929,1728550086487,-751.47529015,0.00010895,2]
[340103936,1728550222302,-614.4964,0.00010431,2]
[340103937,1728550222325,-248.52470985,0.00010895,2]
[340103938,1728550222349,-300.0,0.00010899,2]
[340103939,1728550222372,-224.7625158,0.000109,2]
[340103940,1728550222395,-7500.0,0.000109,2]
[340103941,1728550222417,-500.0,0.00010912,2]
[340103942,1728550222439,-154.8,0.00010959,2]
[340103943,1728550222462,-153.58,0.00010959,2]
[340103944,1728550222484,-158.14,0.00010959,2]
[340103945,1728550222507,-150.0,0.00010998,2]
[340103946,1728550222529,-192.796,0.00010999,2]
[340103947,1728550222550,-1298.0,0.00010999,2]
[340103948,1728550222570,-626.0,0.00010999,2]
[340103949,1728550222591,-449.0,0.00010999,2]
[340103950,1728550222612,-811.0,0.00010999,2]
[340103951,1728550222633,-559.0,0.00010999,2]
[340103952,1728550222654,-935.0,0.00010999,2]
[340103953,1728550222676,-150.0,0.00010999,2]
[340103954,1728550222697,-150.0,0.00010999,2]
[340103955,1728550222718,-1083.0,0.00010999,2]
[340103956,1728550222740,-531.0,0.00011,2]
[340103957,1728550222763,-100507.03295652,0.00011,2]
[340103958,1728550222788,-182703.86741783,0.00011,2]
[340103967,1728550231925,-400.0,0.00010276,2]
[340103968,1728550231935,-300.43845912,0.000109,2]
[340103969,1728550231944,-150.0,0.00010999,2]
[340103970,1728550231954,-55.43533345,0.00011,2]
[340103971,1728550231965,-844.63596783,0.00011,2]
[340103972,1728550232034,-2581.49646831,0.00011,2]
[340103973,1728550232089,-3660.97053496,0.00011,2]
[340103974,1728550232146,-261.61765401,0.00011,2]
[340104164,1728550238199,-1042.82955653,0.00011,2]
[340104168,1728550238260,-1000.0,0.00011,2]
[340104232,1728550240173,-278.42993033,0.00011,2]
[340104233,1728550240197,-6637.03879038,0.00011,2]
[340104234,1728550240213,-17588.60619722,0.00011,2]
[340104235,1728550240238,-487.511024,0.00011,2]
[340104251,1728550242952,-716.4,0.000109,2]
[340104254,1728550242963,-442.038004,0.000109,2]
[340104259,1728550243013,-4077.49325047,0.000109,2]
[340104260,1728550243024,-4111.38894553,0.000109,2]
[340104261,1728550243034,-269.718,0.00010999,2]
[340104262,1728550243043,-5808.24136564,0.00011,2]
[340104263,1728550243069,-9246.33797304,0.00011,2]
[340104264,1728550243128,-500.0,0.00011,2]
[340104265,1728550243236,-995.61878728,0.00011,2]
[340104266,1728550243248,-279.92356222,0.00011,2]
[340104267,1728550243260,-759.4936,0.00011,2]
[340104278,1728550245922,-3929.24281193,0.00011,2]
[340104279,1728550246031,-39524.25175156,0.00011,2]
[340104280,1728550246041,-54795.76812833,0.00011,2]
[340104286,1728550292858,300.0,0.000102,3]
[340104287,1728550294987,700.0,0.000103,3]
[340104288,1728550297095,1000.0,0.000104,3]
[340104289,1728550299200,1400.0,0.000105,3]
[340104290,1728550301297,1700.0,0.000106,3]
[340104291,1728550303390,300.0,0.000107,3]
[340104292,1728550305500,300.0,0.000108,3]
[340104293,1728550307611,300.0,0.000109,3]
[340104294,1728550307779,250.0,0.000102,2]
[340104295,1728550330038,200.0,0.000102,2]
[340104296,1728550336494,-1000.0,0.00010235,2]
[340104297,1728550338822,-456.63,0.00010235,2]
[340104298,1728550419633,629.43,8.265e-05,2]
[340104299,1728550424439,250.0,0.00010179,2]
[340104300,1728550494333,301.3,0.00010179,2]
[340104301,1728550592844,170.28,0.00010178,2]
[340104302,1728550622990,184.13,0.00010178,2]
[340104303,1728550787061,680.0,0.00010177,2]
[340104304,1728550865546,-629.43,0.00010529,2]
[340104305,1728550865568,-500.0,0.00010529,2]
[340104306,1728550865589,-500.0,0.00010529,2]
[340104307,1728550865610,-70.57,0.00010529,2]
[340104308,1728550881869,200.0,0.00010178,2]
[340104309,1728550902315,250.0,0.00010178,2]
[340104310,1728550988113,631.44,8.22e-05,2]
[340104311,1728551004980,250.0,0.00010129,2]
[340104312,1728551067160,150.65,0.00010129,2]
[340104313,1728551120636,184.4,0.00010121,2]
[340104314,1728551339326,-631.44,0.00010484,2]
[340104315,1728551339347,-368.56,0.00010529,2]
[340104316,1728551344169,-60.87,0.00010529,2]
[340104317,1728551344188,-500.0,0.00010529,2]
[340104318,1728551344207,-339.13,0.00010529,2]
[340104319,1728551354785,456.0,0.00010138,2]
[340104320,1728551392891,250.0,0.00010129,2]
[340104321,1728551429988,200.0,0.00010138,2]
[340104328,1728551432150,-283.25,0.00010475,2]
[340104329,1728551432160,-48.71942036,0.00010529,2]
[340104330,1728551432169,-47.03057964,0.00010899,2]
[340104331,1728551432180,-102.96942036,0.00010899,2]
[340104332,1728551432189,-1294.8804,0.000109,2]
[340104333,1728551432200,-1000.0,0.000109,2]
[340104334,1728551432209,-221.4234,0.000109,2]
[340104335,1728551432218,-293.9926,0.000109,2]
[340104336,1728551432228,-10540.6977,0.000109,2]
[340104337,1728551432237,-550.3927,0.000109,2]
[340104338,1728551432247,-150.21922956,0.000109,2]
[340104339,1728551432256,-500.0,0.00010912,2]
[340104340,1728551432265,-150.0,0.00010952,2]
[340104341,1728551432274,-824.63502761,0.00010952,2]
[340104342,1728551432285,-258.36497239,0.00010952,2]
[340104343,1728551432295,-154.8,0.00010959,2]
[340104344,1728551432304,-154.35,0.00010959,2]
[340104345,1728551432313,-53.3445792,0.0001099,2]
[340104346,1728551432324,-538.29120614,0.0001099,2]
[340104347,1728551432335,-814.34421466,0.0001099,2]
[340104348,1728551432344,-385.65578534,0.0001099,2]
[340104437,1728551438454,-114.33421466,0.0001099,2]
[340104438,1728551438463,-299.99,0.0001099,2]
[340104439,1728551438473,-42.87578534,0.0001099,2]
[340104449,1728551440030,-108.11421466,0.0001099,2]
[340104450,1728551440039,-143.86735356,0.0001099,2]
[340104451,1728551440088,-27.61902101,0.0001099,2]
[340104452,1728551440098,-232.14514876,0.00010999,2]
[340104453,1728551440109,-767.85485124,0.00010999,2]
[340104454,1728551440118,-150.0,0.00010999,2]
[340104455,1728551440129,-218.942,0.00010999,2]
[340104456,1728551440139,-1298.0,0.00010999,2]
[340104457,1728551440148,-632.735,0.00010999,2]
[340104458,1728551440157,-357.473,0.00010999,2]
[340104459,1728551440166,-559.0,0.00010999,2]
[340104460,1728551440175,-545.0,0.00011,2]
[340104461,1728551440185,-1529.74514875,0.00011,2]
[340104462,1728551440203,-73.64985125,0.00011,2]
[340104463,1728551440212,-192.91014875,0.00011,2]
[340104464,1728551440223,-2275.44022972,0.00011,2]
[340104465,1728551440235,-505.2624392,0.00011,2]
[340104466,1728551440246,-1641.30252,0.00011,2]
[340104467,1728551440256,-4262.34463985,0.00011,2]
[340104468,1728551440268,-605.99708298,0.00011,2]
[340104469,1728551440279,-1086.00001,0.00011,2]
[340104470,1728551440291,-3984.37746997,0.00011,2]
[340104471,1728551440303,-884.16644664,0.00011,2]
[340104472,1728551440314,-4640.35341479,0.00011,2]
[340104473,1728551440421,-300.50591858,0.00011,2]
[340104474,1728551440432,-2806.47385341,0.00011,2]
[340104475,1728551440444,-1600.65,0.00011,2]
[340104476,1728551440456,-5230.30353276,0.00011,2]
[340104477,1728551440649,-588.2445,0.00011,2]
[340104481,1728551443189,-383.20020393,0.00011,2]
[340104482,1728551443201,-5630.95657849,0.00011,2]
[340104483,1728551443214,-13909.70808209,0.00011,2]
[340104484,1728551443246,-759.5749,0.00011,2]
[340104485,1728551443257,-506.1732825,0.00011,2]
[340104486,1728551443268,-1578.62846982,0.00011,2]
[340104487,1728551443303,-40031.48566037,0.00011,2]
[340104488,1728551443312,-208817.68263291,0.00011,2]
[340104489,1728551443324,-715.77,0.00011,2]
[340104490,1728551443362,-490.45,0.00011,2]
[340104491,1728551443373,-9117.48,0.00011,2]
[340104493,1728551446093,-1034.05360558,0.00011,2]
[340104494,1728551446105,-585.71,0.00011,2]
[340104495,1728551446153,-1318.1843902,0.00011,2]
[340104496,1728551446215,-4919.07120143,0.00011,2]
[340104497,1728551446226,-1803.0972966,0.00011,2]
[340104498,1728551446238,-1185.57,0.00011,2]
[340104499,1728551446249,-215023.13904762,0.00011,2]
[340104500,1728551446275,-939.883994,0.00011,2]
[340104501,1728551446285,-6156.78116443,0.00011,2]
[340104502,1728551446296,-1904.85498398,0.00011,2]
[340104503,1728551446308,-1919.57705919,0.00011,2]
[340104504,1728551446332,-1320.45,0.00011,2]
[340104505,1728551446344,-5884.21188928,0.00011,2]
[340104506,1728551446355,-729.12371714,0.00011,2]
[340104507,1728551446366,-453.46218221,0.00011,2]
[340104508,1728551446377,-740.40033588,0.00011,2]
[340104509,1728551446393,-555.85258899,0.00011,2]
[340104510,1728551446450,-320.34876415,0.00011,2]
[340104511,1728551446463,-290.65827228,0.00011,2]
[340104512,1728551446474,-400000.00004885,0.00011,2]
[340104513,1728551446485,-443.04343652,0.00011,2]
[340104515,1728551583751,591.55,8.288e-05,2]
[340104516,1728551607408,250.0,0.00010196,2]
[340104517,1728551634712,150.65,0.00010196,2]
[340104518,1728551688189,166.94,0.00010198,2]
[340104519,1728551853029,635.2,0.00010194,2]
[340104520,1728551912031,500.0,9.964e-05,2]
[340104522,1728551929744,200.0,0.0001019,2]
[340104542,1728551945846,250.0,0.0001019,2]
[340104543,1728551985661,171.06,0.00010194,2]
[340104544,1728552040363,500.0,9.964e-05,2]
[340104545,1728552188031,250.0,0.00010131,2]
[340104546,1728552204750,184.13,0.00010131,2]
[340104547,1728552241941,500.0,9.964e-05,2]
[340104548,1728552249890,625.65,8.269e-05,2]
[340104549,1728552339156,-800.0,0.00010234,2]
[340104550,1728552339181,-800.0,0.00010234,2]
[340104551,1728552339205,-800.0,0.00010234,2]
[340104552,1728552339230,-800.0,0.00010234,2]
[340104553,1728552339253,-800.0,0.00010234,2]
[340104554,1728552339277,-15.0,0.00010234,2]
[340104594,1728552372986,491.84,0.00010139,2]
[340104598,1728552413883,-785.0,0.00010234,2]
[340104599,1728552446041,250.0,0.00010131,2]
[340104600,1728552470087,169.38,0.00010131,2]
[340104601,1728552497601,428.5,0.00010123,2]
[340104618,1728552524596,4987.12,0.0001,2]
[340104619,1728552524619,132073.76739599,0.0001,2]
[340104675,1728552632340,-800.0,0.00010484,2]
[340104676,1728552632349,-625.65,0.00010533,2]
[340104677,1728552632358,-281.64,0.0001078,2]
[340104678,1728552632367,-500.0,0.00010873,2]
[340104679,1728552632376,-9.52349581,0.00010879,2]
[340104680,1728552632402,-140.47650419,0.00010879,2]
[340104681,1728552632412,-300.0,0.00010879,2]
[340104682,1728552632422,-107.13867172,0.0001088,2]
[340104683,1728552632435,-641.43342479,0.0001088,2]